Cogmind - Beta 16.1 @@@ ROGUE MODE // 2026.03.30 @ 02:42:47 Player: Vitim Result: Destroyed by S-10 Pest with Light Assault Rifle Performance ------------- Evolutions (0) 0 Regions Visited (1) 200 Robots Destroyed (12) 60 Value Destroyed (72) 72 Prototype IDs (0) 0 Alien Tech Used (0) 0 Bonus (0) 0 TOTAL SCORE: 332 Bonus ------- None Cogmind --------- Core Integrity 0/250 Matter 300/300 Energy 1/100 System Corruption 0% Temperature Cool (0) Movement Core (50) Location -10/Materials Parts ------- > --- POWER (1) -------- (None) > --- PROPULSION (2) --- (None) > --- UTILITY (2) ------ Seismic Detector ECM Suite > --- WEAPON (2) ------- (None) > --- INVENTORY (5) ---- Improved Terrain Scanner Peak State ------------ > --- POWER ------------ Ion Engine > --- PROPULSION ------- Aluminum Leg Aluminum Leg > --- UTILITY ---------- Improved Terrain Scanner Seismic Detector > --- WEAPON ----------- Light Assault Rifle Light Assault Rifle > --- INVENTORY -------- (None) [Rating: 9] Favorites ----------- Power Ion Engine Engine Ion Engine Propulsion Aluminum Leg Leg Aluminum Leg Utility Seismic Detector Device Seismic Detector Weapon Mining Laser Ballistic Gun Light Assault Rifle Special Weapon Mining Laser Build | -11 -10 ------- Run | Yrd Mat Slots Evolved . | . . Power . | . . Propulsion . | . . Utility . | . . Weapon . | . . Parts Attached 10 | 9 1 Power 1 | 1 . Engine 1 | 1 . Core . | . . Reactor . | . . Propulsion 2 | 2 . Treads . | . . Leg 2 | 2 . Wheel . | . . Hover . | . . Flight . | . . Utility 3 | 2 1 Device 3 | 2 1 Storage . | . . Processor . | . . Hackware . | . . Protection . | . . Artifact . | . . Weapon 4 | 4 . Energy Gun . | . . Energy Cannon . | . . Ballistic Gun 2 | 2 . Ballistic Cannon . | . . Launcher . | . . Special Weapon 2 | 2 . Impact Weapon . | . . Slashing Weapon . | . . Piercing Weapon . | . . Special Melee Weapon . | . . Unidentified Prototypes . | . . Parts Lost 7 | . 7 Power 1 | . 1 Propulsion 2 | . 2 Utility . | . . Weapon 4 | . 4 Highest Loss Streak 7 | . 7 To Critical Strikes . | . . Average Backups 2 | . 2 Power . | . . Propulsion . | . . Utility . | . . Weapon 1 | . 1 Tool/Special . | . . Unused Backups . | . . Power . | . . Propulsion . | . . Utility . | . . Weapon . | . . Tool/Special . | . . Average Slot Usage (%) 98 | . 98 Engine 13 | . 13 Leg 27 | . 27 Device 28 | . 28 Special Weapon 26 | . 26 Peak Build Rating 9 | 9 9 Average Rating 7 | 6 7 On Entrance 4 | . 9 Avg Prop Armor Cover (%) . | . . Naked Turns . | . . Heaviest Build 10 | 9 10 Greatest Support 20 | 20 20 Greatest Overweight (x) 1 | 1 1 Average Overweight (x) . | . . Largest Inventory Capacity 5 | 5 5 Average Capacity 5 | 5 5 Most Carried 4 | 4 4 Average Carried 2 | . 2 Final Capacity 5 | 5 5 Final Carried 2 | 2 1 Class Distribution -------------------- 56% | Scavenger-Mutant 43% | Mutant Dominant Class ---------------- Mutant | -10/Materials Resources | -11 -10 ----------- Run | Yrd Mat Matter Collected 386 | 386 . Remotely . | . . Salvage Created 238 | 228 10 Parts 28 | 28 . Haulers Intercepted . | . . Recyclers Shooed . | . . Parts Field Recycled . | . . Retrieved Matter . | . . Parts Self-Destructed . | . . Prevented . | . . Parts Restored . | . . Kills | -11 -10 ------- Run | Yrd Mat Combat Hostiles Destroyed 1 | . 1 Guns 1 | . 1 Classes Destroyed 4 | 3 1 Worker 4 | 4 . Tunneler 6 | 6 . Recycler 1 | 1 . Swarmer 1 | . 1 Best Kill Streak 3 | 3 1 Combat Bots Only 1 | . 1 Max Kills in Single Turn 1 | 1 1 Gunslinging . | . . Exploded . | . . Melee . | . . Uniques/NPCs Destroyed . | . . Combat | -11 -10 -------- Run | Yrd Mat Hostile Shots Fired 109 | . 109 Missed 21 | . 21 Hits 88 | . 88 Projectile 88 | . 88 Damage Taken 744 | . 744 Core 250 | . 250 Absorbed by Shields . | . . Core Remaining (%) 100 | 100 . Volleys Fired 72 | 48 24 Largest 2 | 2 2 Hottest 200 | 40 200 Shots Fired 143 | 96 47 Gun 104 | 96 8 Cannon . | . . Launcher . | . . Special 39 | . 39 Kinetic 104 | 96 8 Thermal 39 | . 39 Explosive . | . . Electromagnetic . | . . Robot Hit Streak 8 | 8 3 Robot Miss Streak 3 | 3 3 Penetration Max . | . . Secondary Targets 1 | . 1 Max Gunslinging Chain 1 | . 1 Shots Hit Robots 68 | 65 3 Core Hits 25 | 23 2 Critical Kills . | . . Critical Parts Destroyed . | . . Critical Strikes . | . . Melee Attacks . | . . Impact . | . . Slashing . | . . Piercing . | . . Sneak Attacks . | . . Combat Hostiles . | . . Follow-up Attacks . | . . Damage Inflicted 567 | 535 32 Guns 563 | 535 28 Cannons . | . . Explosions . | . . Melee . | . . Ramming 4 | . 4 Kinetic 563 | 535 28 Thermal . | . . Explosive . | . . Electromagnetic . | . . Impact . | . . Slashing . | . . Piercing . | . . Highest Corruption . | . . Average Corruption . | . . Corruption Purged . | . . Corruption Blocked . | . . Overload Shots . | . . Overflow Damage . | . . Projectiles . | . . Explosions . | . . Melee . | . . Knockbacks . | . . Impact . | . . Kinetic . | . . Secondary . | . . Self-Inflicted Damage . | . . Shots . | . . Rammed . | . . Targets Rammed 2 | . 2 Kicked 2 | . 2 Crushed . | . . Highest Temperature 112 | . 112 Average Temperature 49 | . 49 Received Heat Transfer 72 | . 72 Siege Activations . | . . Martial Activations . | . . Shielding Activations . | . . Robots Disrupted . | . . Combat Hostiles . | . . Robots Corrupted . | . . Combat Hostiles . | . . Parts Fried . | . . Impact Corruptions . | . . Robots Melted . | . . Combat Hostiles . | . . Parts Melted . | . . Heat Transferred . | . . Parts Sabotaged . | . . Parts Stolen . | . . Parts Stripped . | . . Power Chain Reactions . | . . Alert | -11 -10 ------- Run | Yrd Mat Maximum Alert Level . | . . Low Security (%) 100 | 100 100 Level 1 . | . . Level 2 . | . . Level 3 . | . . Level 4 . | . . Level 5 . | . . High Security . | . . Max Security . | . . Peak Influence 20 | 10 20 Initial . | . . Average . | 1 . Influence Increases 111 | 55 56 Destroy 0b10 Robot/C 20 | . 20 Destroy 0b10 Robot/NC 55 | 55 . Disable Machine 15 | . 15 Destroy Structure 21 | . 21 Influence Decreases 111 | 55 56 Time Decay 89 | 55 34 Lost Part 22 | . 22 Squads Dispatched . | . . Investigation . | . . Extermination . | . . Reinforcement . | . . Assault . | . . Garrison . | . . Intercept . | . . Searches Triggered . | . . Construction Impeded . | . . Haulers Reinforced . | . . Active Scanning Responses . | . . Cargo Convoy Interrupts . | . . Stealth | -11 -10 --------- Run | Yrd Mat Distress Signals . | . . Communications Jammed . | . . Distress Signals . | . . Times Spotted 22 | . 22 Peak Tracking Total 7 | . 7 Tactical Retreats 4 | . 4 ECM-based Alert Blocks 15 | . 15 Traps | -11 -10 ------- Run | Yrd Mat Traps Triggered . | . . Indirectly . | . . Trap Hack Attempts . | . . Triggered . | . . Disarmed . | . . Reprogrammed . | . . Reused . | . . Traps Extracted . | . . Installed . | . . Triggered . | . . Machines | -11 -10 ---------- Run | Yrd Mat Machines Disabled 1 | . 1 Max in Single Turn 1 | . 1 Machines Repaired . | . . Machines Dismantled . | . . Machines Sabotaged . | . . Overloaded Fab Kills . | . . Hacking | -11 -10 --------- Run | Yrd Mat Machines Accessed 3 | . 3 Terminals 3 | . 3 Fabricators . | . . Repair Stations . | . . Recycling Units . | . . Scanalyzers . | . . Garrison Access . | . . Total Hacks 10 | . 10 Successful 8 | . 8 Failed 2 | . 2 Catastrophic . | . . Database Lockouts . | . . Manual . | . . Terminals 10 | . 10 Fabricators . | . . Repair Stations . | . . Recycling Units . | . . Scanalyzers . | . . Garrison Access . | . . Terminal Hacks 8 | . 8 Record 6 | . 6 Alert Level 2 | . 2 Fabricator Hacks . | . . Repair Station Hacks . | . . Recycling Unit Hacks . | . . Scanalyzer . | . . Garrison Access Hacks . | . . Unauthorized Hacks . | . . Terminals . | . . Fabricators . | . . Repair Stations . | . . Recycling Units . | . . Scanalyzers . | . . Garrison Access . | . . Data Cores Recovered . | . . Used . | . . Hacking Detections 3 | . 3 Full Trace Events . | . . Feedback Events . | . . Feedback Blocked . | . . Robot Schematics Acquired . | . . Robots Built . | . . Authchips . | . . Time . | . . Total Robot Build Rating . | . . Part Schematics Acquired . | . . Parts Built . | . . Authchips . | . . Time . | . . Total Part Build Rating . | . . Part Studies Acquired . | . . Parts Repaired . | . . Time . | . . Parts Recycled . | . . Recycled Matter . | . . Retrieved Matter . | . . Retrieved Components . | . . Parts Scanalyzed . | . . Part Schematics Acquired . | . . Parts Damaged . | . . Bothacking | -11 -10 ------------ Run | Yrd Mat Used RIF Installer . | . . Robots Hacked . | . . Non-combat . | . . Combat . | . . Robot Hacks Applied . | . . Relay Couplers Released . | . . Fabnet Peak Effective % . | . . Robots Rewired . | . . Allies Hacked . | . . Hacks Repelled . | . . Allies | -11 -10 -------- Run | Yrd Mat Total Allies . | . . Largest Group . | . . Highest-Rated Group . | . . Highest-Rated Ally . | . . Total Orders . | . . Ally Attacks . | . . Total Damage . | . . Kills . | . . Allies Corrupted . | . . Allies Melted . | . . Intel | -11 -10 ------- Run | Yrd Mat Active Infowar (turns) 2083 | 341 1742 Terrain 990 | 183 807 Seismic 2083 | 341 1742 ECM 934 | . 934 Robot Analysis Total . | . . Derelict Logs Recovered . | . . Drone Launches . | . . Drone Recoveries . | . . Exploration | -11 -10 ------------- Run | Yrd Mat Turns Passed 2157 | 415 1742 Spaces Moved 602 | 214 388 Core 55 | 14 41 Treads . | . . Legs 547 | 200 347 Wheels . | . . Hover . | . . Flight . | . . Fastest Speed 50 | 50 50 Average Speed 116 | 117 115 Slowest Speed 120 | 120 120 Overloaded Moves . | . . Propulsion Burnouts . | . . Robots Hopped . | . . Potential Cave-ins 6 | . 6 Cave-ins Triggered . | . . Exploration Rate (%) 26 | 8 44 Regions Visited 1 Branch Regions . Pre-discovered Areas . | . . Known Exits Taken . | . . Unknown Exits Taken 1 | 1 . Scrap Searched . | . . Spaces Dug 31 | . 31 Terrain Destroyed 31 | . 31 Melee . | . . Projectile 31 | . 31 AOE . | . . Terrain Rammed . | . . Walls Destroyed . | . . Machines Disabled . | . . Actions | -11 -10 --------- Run | Yrd Mat Total 1859 | 302 1557 Wait 1157 | 19 1138 Move 601 | 213 388 Hop . | . . Pick Up 11 | 10 1 Fast Attach . | . . Attach 12 | 9 3 Detach 3 | 2 1 Swap . | . . Drop 1 | 1 . Fire 72 | 48 24 Melee . | . . Ram . | . . Kick 2 | . 2 Crush . | . . Escape Stasis . | . . Rewire . | . . Trap . | . . Miscellaneous . | . . Route ------- -11/Scrapyard -10/Materials (discovered 2 exits: [*Mat] / [*Sub]) History --------- Turn | Location | Event 2 | -11/Scrapyard | Met Revision 17 4 | -11/Scrapyard | Discovered new exit (range 16) 416 | -11/Scrapyard | Entered Materials 436 | -10/Materials | Build established: Scavenger-Mutant 1459 | -10/Materials | Discovered new exit (range 15) 1530 | -10/Materials | Build established: Mutant 2134 | -10/Materials | Discovered new exit (range 12) 2141 | -10/Materials | Core integrity fell below 50% 2155 | -10/Materials | Core integrity fell below 20% 2158 | -10/Materials | Destroyed by S-10 Pest with Light Assault Rifle Last Messages --------------- 01514_ U-05 Engineer builds a Wall. 01577_ Hadron Collector disabled. 01747_ K-01 Serf collects debris. 01835_ U-05 Engineer builds a Wall. 02083_ Mining Laser destroyed. 02094_ U-05 Engineer builds a Wall. 02101_ S-10 Pest destroyed. 02101_ Switching to secondary target: G-34 Mercenary. 02104_ Aluminum Leg destroyed. 02108_ Kicked S-10 Pest. [Achievement: For Emergencies Only] Notice for Steam players: Cogmind player global achievement rates displayed by Steam are all underreported, in many cases by a huge margin, due to how they are calculated by Valve. 02110_ Ion Engine destroyed. 02110_ Kicked T-07 Excavator. 02117_ Aluminum Leg destroyed. 02134_ EXIT=FOUND 02138_ Lgt. Assault Rifle destroyed. [Achievement: First Step to Greatness] Map ----- +----------------------------------------------------+ | ?#"" + #?# | | ?#"Y #############?# | | ?#"" # ##??# | | ?### # #???# ###### | | ???# # #???### #????? | | ???# # ##????# #????? | | ???# # #?????# #????? | | ???# + #?????# #????? | | ???# # #?????# #????? | | ???# # ##????# #????? | | ???# ############????# #????? | | ???# #?????#####<###?# #????? | | ???# #????# #?# ????? | | ???# #????# #?# ????? | | ???# #????# #?# ???? | | ???# #????# #??#### ???? | | ???# #????# #?????? ??? | | ???# #????# #?????? ??? | | ???# #????? #??????? ?? | | ???# #?????? #??????? | | ???# #########"T"#+####### | | ???# | | ???# | | ???# | | ???# #############+#######????? | | ???# #@ ## #???????? | | ???# #!s""" ## #???????? | | ???# #ss" ## #???????? | | ???# + s ## """ #???????? | | ???# # "" ## """"" #???????? | | ??## # ## """"" #???????? | | ??#" ######### """"" #???????? | | ??#T #??????## """ #???????? | | ??#" #??????## #???????? | | ??## #??????########/##???????? | | ???# #??????## # #????????? | | ???# #???????# " % # #????????? | | ???# < #???????#""" # #????????? | | ???# #???????#""" # ######### | | ???#####???????#""" # | | ???????????????# "" + | | ???????????????#""" # | | ???????????????#"" ########+## | | ???????????????#"" #??????????? | | ???????????????# " #??????????? | | ???????????????# #??????????? | | ???????????????# #??????????? | | ???????????????#######??????????? | | ????????????????????????????????? | | ????????????????????????????????? | +----------------------------------------------------+ Best States ------------- Heat Dissipation 25 Energy Generation 10 Energy Capacity 250 Matter Stores 300 Matter Capacity 300 Sight Range 16 Terrain Scan Range 16 Terrain Scan Density 10 ECM Strength 1 Evasion (%) 55 Item Schematics ----------------- None Robot Schematics ------------------ None Fabricated ------------ Nothing Repaired ---------- Nothing Studied --------- None Alien Tech Used ----------------- None Achievements -------------- First Step to Greatness For Emergencies Only I Have A Map? You Again Challenges ------------ None Game ------ Seed DeepFieldthrustCalibrator Manual? 0 Play Time 00:15:39 Cumulative 1.2 hours Start 2026.03.30 @ 02:29:08 End 2026.03.30 @ 02:42:47 Sessions 1 Manual Loads 0 Difficulty Rogue Special Mode None Game No. 5 Rogue 5 Adventurer 0 Explorer 0 Win Type - Total 0 Types 0/0/0/0/0/0/0/0/0/0 Lore% 2 Gallery% 3 Achievement% 3 Wizard Run 0 Options --------- Layout 1 ASCII 0 Keyboard 0 Movement Mouse Keybinds 0 Fullscreen 1 Font 32/SmallcapsGlow Map View 77x35 Zoom Use 0% Tactical HUD 1 Map Filters NONE Filters NONE Steam 1 RUN: 155b2313-8894-416d-b9b1-bca5b6287fb8